[Event "Titled Tuesday Blitz May 31 Early 2022"]
[White "Stribuk, Artiom"]
[Black "Royal, Shreyas"]
[WhiteFideId "13515659"]
[BlackFideId "448869"]
[WhiteElo "2259"]
[BlackElo "1986"]
[Result "0-1"]
[Round "04"]
[TimeControl "180+1"]
[Date "2022.06.01"]
[WhiteClock "0:00:10"]
[BlackClock "0:00:17"]

1. e4 {[%clk 0:03:00]}  e5 {[%clk 0:02:55]} 2. Ne2 {[%clk 0:02:59]}  Nc6 {[%clk 0:02:52]} 3. Nbc3 {[%clk 0:02:56]}  Nf6 {[%clk 0:02:51]} 4. d4 {[%clk 0:02:42]}  exd4 {[%clk 0:02:51]} 5. Nxd4 {[%clk 0:02:42]}  Bb4 {[%clk 0:02:51]} 6. Nxc6 {[%clk 0:02:42]}  bxc6 {[%clk 0:02:51]} 7. Bd3 {[%clk 0:02:43]}  d5 {[%clk 0:02:51]} 8. exd5 {[%clk 0:02:39]}  cxd5 {[%clk 0:02:52]} 9. O-O {[%clk 0:02:39]}  O-O {[%clk 0:02:52]} 10. h3 {[%clk 0:02:40]}  Rb8 {[%clk 0:02:38]} 11. Qf3 {[%clk 0:02:40]}  Re8 {[%clk 0:02:39]} 12. Bg5 {[%clk 0:02:37]}  c6 {[%clk 0:02:39]} 13. Rfe1 {[%clk 0:02:28]}  Be6 {[%clk 0:02:34]} 14. a3 {[%clk 0:02:22]}  Be7 {[%clk 0:02:32]} 15. Rab1 {[%clk 0:02:10]}  Qa5 {[%clk 0:02:19]} 16. Ne2 {[%clk 0:02:03]}  Ne4 {[%clk 0:02:03]} 17. Bxe7 {[%clk 0:02:00]}  Rxe7 {[%clk 0:02:01]} 18. Nd4 {[%clk 0:01:52]}  Qc5 {[%clk 0:01:44]} 19. Nxe6 {[%clk 0:01:39]}  Rxe6 {[%clk 0:01:42]} 20. Bxe4 {[%clk 0:01:24]}  dxe4 {[%clk 0:01:42]} 21. Rxe4 {[%clk 0:01:21]}  Qxc2 {[%clk 0:01:43]} 22. Rbe1 {[%clk 0:01:21]}  Rxe4 {[%clk 0:01:30]} 23. Qxe4 {[%clk 0:01:22]}  Qxe4 {[%clk 0:01:25]} 24. Rxe4 {[%clk 0:01:23]}  f5 {[%clk 0:01:25]} 25. Re2 {[%clk 0:01:21]}  Kf7 {[%clk 0:01:24]} 26. Rc2 {[%clk 0:01:15]}  Rb6 {[%clk 0:01:18]} 27. b4 {[%clk 0:01:14]}  Ke6 {[%clk 0:01:16]} 28. Rc5 {[%clk 0:01:13]}  g6 {[%clk 0:01:16]} 29. Kf1 {[%clk 0:01:06]}  Kd6 {[%clk 0:01:17]} 30. Ra5 {[%clk 0:01:04]}  Rb7 {[%clk 0:01:16]} 31. Ke2 {[%clk 0:01:03]}  Rc7 {[%clk 0:01:13]} 32. Kd3 {[%clk 0:00:57]}  c5 {[%clk 0:01:10]} 33. b5 {[%clk 0:00:56]}  Kd5 {[%clk 0:01:08]} 34. Kc3 {[%clk 0:00:55]}  Rb7 {[%clk 0:00:58]} 35. a4 {[%clk 0:00:54]}  f4 {[%clk 0:00:56]} 36. Ra6 {[%clk 0:00:53]}  Rf7 {[%clk 0:00:50]} 37. f3 {[%clk 0:00:48]}  g5 {[%clk 0:00:35]} 38. h4 {[%clk 0:00:27]}  gxh4 {[%clk 0:00:33]} 39. Rh6 {[%clk 0:00:26]}  Rg7 {[%clk 0:00:33]} 40. Rh5+ {[%clk 0:00:25]}  Kd6 {[%clk 0:00:31]} 41. Rxh4 {[%clk 0:00:26]}  Rxg2 {[%clk 0:00:31]} 42. Rxh7 {[%clk 0:00:26]}  Rg3 {[%clk 0:00:28]} 43. Rxa7 {[%clk 0:00:26]}  Rxf3+ {[%clk 0:00:27]} 44. Kc4 {[%clk 0:00:26]}  Rf1 {[%clk 0:00:18]} 45. Ra6+ {[%clk 0:00:26]}  Ke5 {[%clk 0:00:19]} 46. Kxc5 {[%clk 0:00:27]}  Rc1+ {[%clk 0:00:20]} 47. Kb4 {[%clk 0:00:27]}  f3 {[%clk 0:00:20]} 48. Ra8 {[%clk 0:00:28]}  f2 {[%clk 0:00:20]} 49. Re8+ {[%clk 0:00:28]}  Kd6 {[%clk 0:00:20]} 50. Rf8 {[%clk 0:00:09]}  f1=Q {[%clk 0:00:20]} 51. Rxf1 {[%clk 0:00:09]}  Rxf1 {[%clk 0:00:21]} 52. Ka5 {[%clk 0:00:10]}  Kc7 {[%clk 0:00:20]} 53. Ka6 {[%clk 0:00:10]}  Kb8 {[%clk 0:00:19]} 54. a5 {[%clk 0:00:10]}  Rf6+ {[%clk 0:00:17]} 55. b6 {[%clk 0:00:10]}  Rf5 {[%clk 0:00:17]} 0-1


[Site "https://www.chess.com"]

[Event "Titled Tuesday Blitz May 31 Early 2022"]
[White "Suleymanli, Suleyman"]
[Black "Maghsoodloo, Parham"]
[WhiteFideId "13416375"]
[BlackFideId "12539929"]
[WhiteElo "1598"]
[BlackElo "2630"]
[Result "0-1"]
[Round "04"]
[TimeControl "180+1"]
[Date "2022.06.01"]
[WhiteClock "0:00:27"]
[BlackClock "0:01:50"]

1. Nf3 {[%clk 0:03:00]}  d5 {[%clk 0:03:00]} 2. g3 {[%clk 0:03:01]}  c6 {[%clk 0:03:00]} 3. Bg2 {[%clk 0:03:01]}  Bg4 {[%clk 0:03:01]} 4. d4 {[%clk 0:03:02]}  Nd7 {[%clk 0:03:01]} 5. O-O {[%clk 0:03:02]}  e6 {[%clk 0:03:02]} 6. c4 {[%clk 0:03:02]}  Bd6 {[%clk 0:03:02]} 7. Nc3 {[%clk 0:03:03]}  Ne7 {[%clk 0:03:02]} 8. b3 {[%clk 0:03:02]}  O-O {[%clk 0:02:58]} 9. Bb2 {[%clk 0:03:03]}  a5 {[%clk 0:02:47]} 10. Qc2 {[%clk 0:02:59]}  Rc8 {[%clk 0:02:43]} 11. e4 {[%clk 0:02:57]}  b5 {[%clk 0:02:42]} 12. c5 {[%clk 0:02:56]}  Bc7 {[%clk 0:02:38]} 13. e5 {[%clk 0:02:55]}  f6 {[%clk 0:02:29]} 14. exf6 {[%clk 0:02:48]}  gxf6 {[%clk 0:02:29]} 15. Rfe1 {[%clk 0:02:28]}  e5 {[%clk 0:02:29]} 16. h3 {[%clk 0:02:27]}  Bf5 {[%clk 0:02:29]} 17. Qe2 {[%clk 0:02:26]}  Ng6 {[%clk 0:02:24]} 18. Bc1 {[%clk 0:02:13]}  e4 {[%clk 0:02:19]} 19. Nh2 {[%clk 0:02:12]}  b4 {[%clk 0:02:18]} 20. Nd1 {[%clk 0:02:10]}  Be6 {[%clk 0:02:18]} 21. Bh6 {[%clk 0:02:08]}  Rf7 {[%clk 0:02:18]} 22. Ne3 {[%clk 0:02:06]}  f5 {[%clk 0:02:19]} 23. f4 {[%clk 0:02:06]}  Qf6 {[%clk 0:02:12]} 24. Bg5 {[%clk 0:02:05]}  Qxd4 {[%clk 0:02:11]} 25. h4 {[%clk 0:01:56]}  Nxc5 {[%clk 0:02:08]} 26. h5 {[%clk 0:01:56]}  Nf8 {[%clk 0:02:07]} 27. Kh1 {[%clk 0:01:52]}  Nd3 {[%clk 0:02:06]} 28. Red1 {[%clk 0:01:50]}  Bb6 {[%clk 0:02:06]} 29. Nhf1 {[%clk 0:01:43]}  c5 {[%clk 0:02:04]} 30. Nc2 {[%clk 0:01:38]}  Qc3 {[%clk 0:02:04]} 31. Ne1 {[%clk 0:01:06]}  c4 {[%clk 0:02:04]} 32. Nxd3 {[%clk 0:00:58]}  cxd3 {[%clk 0:02:04]} 33. Qd2 {[%clk 0:00:54]}  Bd4 {[%clk 0:01:55]} 34. Rac1 {[%clk 0:00:47]}  Qxd2 {[%clk 0:01:55]} 35. Nxd2 {[%clk 0:00:47]}  Rc2 {[%clk 0:01:50]} 36. Rxc2 {[%clk 0:00:43]}  dxc2 {[%clk 0:01:50]} 37. Rc1 {[%clk 0:00:44]}  Rc7 {[%clk 0:01:50]} 38. Bd8 {[%clk 0:00:39]}  Rc8 {[%clk 0:01:50]} 39. Rxc2 {[%clk 0:00:27]}  Rxc2 {[%clk 0:01:50]} 0-1


[Site "https://www.chess.com"]

[Event "Titled Tuesday Blitz May 31 Early 2022"]
[White "Turzo, Attila"]
[Black "Haas, Michael"]
[WhiteFideId "704954"]
[BlackFideId "1629514"]
[WhiteElo "2532"]
[BlackElo "1982"]
[Result "1/2-1/2"]
[Round "04"]
[TimeControl "180+1"]
[Date "2022.06.01"]
[WhiteClock "0:00:12"]
[BlackClock "0:00:04"]

1. d4 {[%clk 0:03:00]}  d5 {[%clk 0:02:59]} 2. Nf3 {[%clk 0:03:00]}  Nf6 {[%clk 0:02:59]} 3. c3 {[%clk 0:03:00]}  e6 {[%clk 0:02:57]} 4. Bf4 {[%clk 0:03:00]}  Be7 {[%clk 0:02:57]} 5. e3 {[%clk 0:02:59]}  O-O {[%clk 0:02:58]} 6. h3 {[%clk 0:03:00]}  c5 {[%clk 0:02:58]} 7. Nbd2 {[%clk 0:03:00]}  b6 {[%clk 0:02:58]} 8. a4 {[%clk 0:02:58]}  Bb7 {[%clk 0:02:56]} 9. a5 {[%clk 0:02:58]}  bxa5 {[%clk 0:02:52]} 10. Nb3 {[%clk 0:02:55]}  Nc6 {[%clk 0:02:33]} 11. Ne5 {[%clk 0:02:55]}  Nxe5 {[%clk 0:02:29]} 12. Bxe5 {[%clk 0:02:54]}  Nd7 {[%clk 0:02:29]} 13. Bg3 {[%clk 0:02:48]}  a4 {[%clk 0:02:25]} 14. Rxa4 {[%clk 0:02:46]}  Qb6 {[%clk 0:02:22]} 15. Ra2 {[%clk 0:02:29]}  a5 {[%clk 0:02:06]} 16. Be2 {[%clk 0:02:29]}  a4 {[%clk 0:01:40]} 17. Nc1 {[%clk 0:02:27]}  Bc6 {[%clk 0:01:36]} 18. O-O {[%clk 0:02:26]}  c4 {[%clk 0:01:35]} 19. e4 {[%clk 0:02:20]}  Nf6 {[%clk 0:01:30]} 20. exd5 {[%clk 0:02:15]}  exd5 {[%clk 0:01:22]} 21. Bh4 {[%clk 0:02:15]}  Rfe8 {[%clk 0:01:20]} 22. Bf3 {[%clk 0:02:12]}  h6 {[%clk 0:01:02]} 23. Ne2 {[%clk 0:02:07]}  Qb3 {[%clk 0:00:55]} 24. Qa1 {[%clk 0:02:02]}  g6 {[%clk 0:00:20]} 25. Bg3 {[%clk 0:01:08]}  Qb7 {[%clk 0:00:19]} 26. Be5 {[%clk 0:01:07]}  Qd7 {[%clk 0:00:17]} 27. Re1 {[%clk 0:01:02]}  Nh7 {[%clk 0:00:13]} 28. Ng3 {[%clk 0:00:56]}  Bd6 {[%clk 0:00:12]} 29. Qc1 {[%clk 0:00:42]}  Ng5 {[%clk 0:00:12]} 30. Bg4 {[%clk 0:00:38]}  f5 {[%clk 0:00:04]} 31. Be2 {[%clk 0:00:35]}  Ne4 {[%clk 0:00:05]} 32. Qxh6 {[%clk 0:00:30]}  Bxe5 {[%clk 0:00:04]} 33. dxe5 {[%clk 0:00:30]}  Qg7 {[%clk 0:00:04]} 34. Qxg7+ {[%clk 0:00:23]}  Kxg7 {[%clk 0:00:05]} 35. Nxe4 {[%clk 0:00:23]}  fxe4 {[%clk 0:00:05]} 36. f4 {[%clk 0:00:23]}  exf3 {[%clk 0:00:04]} 37. Bxf3 {[%clk 0:00:23]}  Re6 {[%clk 0:00:03]} 38. Bd1 {[%clk 0:00:17]}  Rae8 {[%clk 0:00:02]} 39. Kf2 {[%clk 0:00:16]}  Rxe5 {[%clk 0:00:03]} 40. Rxe5 {[%clk 0:00:17]}  Rxe5 {[%clk 0:00:03]} 41. Bxa4 {[%clk 0:00:18]}  Rf5+ {[%clk 0:00:03]} 42. Kg3 {[%clk 0:00:16]}  Bxa4 {[%clk 0:00:04]} 43. Rxa4 {[%clk 0:00:16]}  Kh6 {[%clk 0:00:05]} 44. Ra5 {[%clk 0:00:16]}  Re5 {[%clk 0:00:06]} 45. Rb5 {[%clk 0:00:16]}  Re2 {[%clk 0:00:05]} 46. Rxd5 {[%clk 0:00:14]}  Rxb2 {[%clk 0:00:05]} 47. Rd4 {[%clk 0:00:15]}  g5 {[%clk 0:00:04]} 48. Rxc4 {[%clk 0:00:15]}  Kh5 {[%clk 0:00:05]} 49. Rc8 {[%clk 0:00:14]}  Rc2 {[%clk 0:00:05]} 50. c4 {[%clk 0:00:15]}  g4 {[%clk 0:00:06]} 51. Rc5+ {[%clk 0:00:14]}  Kg6 {[%clk 0:00:06]} 52. hxg4 {[%clk 0:00:14]}  Rc3+ {[%clk 0:00:06]} 53. Kf4 {[%clk 0:00:14]}  Kg7 {[%clk 0:00:06]} 54. Rc7+ {[%clk 0:00:14]}  Kg6 {[%clk 0:00:06]} 55. Rc6+ {[%clk 0:00:14]}  Kg7 {[%clk 0:00:06]} 56. g3 {[%clk 0:00:15]}  Rc1 {[%clk 0:00:05]} 57. g5 {[%clk 0:00:14]}  Rc3 {[%clk 0:00:04]} 58. c5 {[%clk 0:00:14]}  Rc4+ {[%clk 0:00:04]} 59. Kf5 {[%clk 0:00:14]}  Rc3 {[%clk 0:00:05]} 60. Rc7+ {[%clk 0:00:14]}  Kg8 {[%clk 0:00:05]} 61. g4 {[%clk 0:00:15]}  Rc1 {[%clk 0:00:04]} 62. g6 {[%clk 0:00:15]}  Rf1+ {[%clk 0:00:04]} 63. Kg5 {[%clk 0:00:15]}  Rc1 {[%clk 0:00:04]} 64. c6 {[%clk 0:00:16]}  Rc2 {[%clk 0:00:03]} 65. Kh6 {[%clk 0:00:12]}  Rh2+ {[%clk 0:00:03]} 66. Kg5 {[%clk 0:00:12]}  Rc2 {[%clk 0:00:04]} 67. Rc8+ {[%clk 0:00:12]}  Kg7 {[%clk 0:00:04]} 68. Rc7+ {[%clk 0:00:12]}  Kg8 {[%clk 0:00:04]} 1/2-1/2


[Site "https://www.chess.com"]

[Event "Titled Tuesday Blitz May 31 Early 2022"]
[White "Vidit, Santosh Gujrathi"]
[Black "Kucuksari, Kaan"]
[WhiteFideId "5029465"]
[BlackFideId "6380166"]
[WhiteElo "2654"]
[BlackElo "2305"]
[Result "1-0"]
[Round "04"]
[TimeControl "180+1"]
[Date "2022.05.31"]
[WhiteClock "0:01:40"]
[BlackClock "0:00:31"]

1. e4 {[%clk 0:03:00]}  c5 {[%clk 0:03:00]} 2. Nf3 {[%clk 0:03:01]}  e6 {[%clk 0:03:00]} 3. d4 {[%clk 0:03:01]}  cxd4 {[%clk 0:03:01]} 4. Nxd4 {[%clk 0:03:02]}  a6 {[%clk 0:03:02]} 5. Bd3 {[%clk 0:03:01]}  Bc5 {[%clk 0:03:02]} 6. Nb3 {[%clk 0:03:01]}  Be7 {[%clk 0:03:02]} 7. Qg4 {[%clk 0:03:01]}  g6 {[%clk 0:03:03]} 8. Nc3 {[%clk 0:03:00]}  d6 {[%clk 0:03:01]} 9. Qg3 {[%clk 0:02:57]}  Nc6 {[%clk 0:02:44]} 10. O-O {[%clk 0:02:55]}  Nf6 {[%clk 0:02:25]} 11. Bh6 {[%clk 0:02:55]}  g5 {[%clk 0:02:25]} 12. Qxg5 {[%clk 0:02:27]}  Rg8 {[%clk 0:02:11]} 13. Qd2 {[%clk 0:02:25]}  Ne5 {[%clk 0:02:07]} 14. Kh1 {[%clk 0:02:24]}  Neg4 {[%clk 0:01:57]} 15. Bf4 {[%clk 0:02:22]}  Nh5 {[%clk 0:01:46]} 16. Be2 {[%clk 0:02:20]}  Nxf4 {[%clk 0:01:30]} 17. Qxf4 {[%clk 0:02:21]}  Ne5 {[%clk 0:01:31]} 18. Qe3 {[%clk 0:02:19]}  Bd7 {[%clk 0:00:54]} 19. f4 {[%clk 0:02:17]}  Ng4 {[%clk 0:00:54]} 20. Qh3 {[%clk 0:02:13]}  h5 {[%clk 0:00:52]} 21. Qxh5 {[%clk 0:02:09]}  Bf6 {[%clk 0:00:43]} 22. e5 {[%clk 0:02:00]}  Nxh2 {[%clk 0:00:34]} 23. Ne4 {[%clk 0:01:40]}  Nxf1 {[%clk 0:00:31]} 24. Nxd6+ {[%clk 0:01:40]} 1-0


[Site "https://www.chess.com"]

[Event "Titled Tuesday Blitz May 31 Early 2022"]
[White "Vokhidov, Shamsiddin"]
[Black "Samunenkov, Ihor"]
[WhiteFideId "14204223"]
[BlackFideId "14187086"]
[WhiteElo "2611"]
[BlackElo "2409"]
[Result "1-0"]
[Round "04"]
[TimeControl "180+1"]
[Date "2022.05.31"]
[WhiteClock "0:01:16"]
[BlackClock "0:00:16"]

1. e4 {[%clk 0:03:00]}  c6 {[%clk 0:02:58]} 2. d4 {[%clk 0:03:00]}  d5 {[%clk 0:02:59]} 3. e5 {[%clk 0:03:01]}  Bf5 {[%clk 0:02:58]} 4. h4 {[%clk 0:03:02]}  h5 {[%clk 0:02:58]} 5. Bd3 {[%clk 0:03:02]}  Bxd3 {[%clk 0:02:58]} 6. Qxd3 {[%clk 0:03:03]}  Qa5+ {[%clk 0:02:59]} 7. c3 {[%clk 0:03:02]}  Qa6 {[%clk 0:02:51]} 8. Qd1 {[%clk 0:03:01]}  e6 {[%clk 0:02:51]} 9. a4 {[%clk 0:03:01]}  c5 {[%clk 0:02:37]} 10. Na3 {[%clk 0:03:01]}  c4 {[%clk 0:02:14]} 11. b3 {[%clk 0:02:56]}  Nd7 {[%clk 0:01:56]} 12. bxc4 {[%clk 0:02:53]}  Bxa3 {[%clk 0:01:56]} 13. Bxa3 {[%clk 0:02:51]}  Qxc4 {[%clk 0:01:56]} 14. Ne2 {[%clk 0:02:50]}  Ne7 {[%clk 0:01:47]} 15. Rb1 {[%clk 0:02:48]}  Qc6 {[%clk 0:01:38]} 16. Rb3 {[%clk 0:02:32]}  Nb6 {[%clk 0:01:29]} 17. Nf4 {[%clk 0:02:31]}  g6 {[%clk 0:01:23]} 18. O-O {[%clk 0:02:16]}  Nc4 {[%clk 0:01:17]} 19. Bxe7 {[%clk 0:02:08]}  Kxe7 {[%clk 0:01:18]} 20. Nd3 {[%clk 0:02:09]}  Rac8 {[%clk 0:00:58]} 21. Qf3 {[%clk 0:02:08]}  Rhf8 {[%clk 0:00:55]} 22. Qf6+ {[%clk 0:02:07]}  Kd7 {[%clk 0:00:55]} 23. Nc5+ {[%clk 0:02:05]}  Ke8 {[%clk 0:00:50]} 24. Rxb7 {[%clk 0:02:05]}  Rc7 {[%clk 0:00:51]} 25. Rfb1 {[%clk 0:02:02]}  Na5 {[%clk 0:00:35]} 26. Rxc7 {[%clk 0:02:00]}  Qxc7 {[%clk 0:00:36]} 27. Rb5 {[%clk 0:01:45]}  Nc6 {[%clk 0:00:22]} 28. Nb7 {[%clk 0:01:29]}  Nd8 {[%clk 0:00:16]} 29. Nxd8 {[%clk 0:01:19]}  Qxd8 {[%clk 0:00:16]} 30. Rb7 {[%clk 0:01:16]} 1-0


[Site "https://www.chess.com"]

[Event "Titled Tuesday Blitz May 31 Early 2022"]
[White "Xu, Yi"]
[Black "Al-Tarboush, Ward"]
[WhiteFideId "8605564"]
[BlackFideId "7601450"]
[WhiteElo "2471"]
[BlackElo "2294"]
[Result "1-0"]
[Round "04"]
[TimeControl "180+1"]
[Date "2022.05.31"]
[WhiteClock "0:01:10"]
[BlackClock "0:00:41"]

1. e4 {[%clk 0:02:59]}  e6 {[%clk 0:02:58]} 2. d4 {[%clk 0:02:59]}  d5 {[%clk 0:02:55]} 3. e5 {[%clk 0:02:59]}  c5 {[%clk 0:02:55]} 4. c3 {[%clk 0:02:59]}  Nc6 {[%clk 0:02:56]} 5. Nf3 {[%clk 0:02:56]}  Qb6 {[%clk 0:02:54]} 6. a3 {[%clk 0:02:56]}  Nh6 {[%clk 0:02:53]} 7. Bd3 {[%clk 0:02:54]}  cxd4 {[%clk 0:02:51]} 8. O-O {[%clk 0:02:54]}  Be7 {[%clk 0:02:44]} 9. Re1 {[%clk 0:02:52]}  Bd7 {[%clk 0:02:40]} 10. b4 {[%clk 0:02:50]}  dxc3 {[%clk 0:02:29]} 11. Nxc3 {[%clk 0:02:49]}  O-O-O {[%clk 0:02:03]} 12. Na4 {[%clk 0:02:24]}  Qc7 {[%clk 0:02:03]} 13. Bxh6 {[%clk 0:02:13]}  gxh6 {[%clk 0:01:59]} 14. Rc1 {[%clk 0:02:13]}  a6 {[%clk 0:01:51]} 15. Qd2 {[%clk 0:02:03]}  Kb8 {[%clk 0:01:34]} 16. Qxh6 {[%clk 0:01:59]}  Rdg8 {[%clk 0:01:29]} 17. Nc5 {[%clk 0:01:51]}  Bxc5 {[%clk 0:01:26]} 18. Rxc5 {[%clk 0:01:51]}  Qd8 {[%clk 0:01:14]} 19. Rb1 {[%clk 0:01:31]}  Qf8 {[%clk 0:00:58]} 20. Qe3 {[%clk 0:01:21]}  Qg7 {[%clk 0:00:57]} 21. g3 {[%clk 0:01:20]}  d4 {[%clk 0:00:53]} 22. Nxd4 {[%clk 0:01:13]}  h5 {[%clk 0:00:44]} 23. Nxc6+ {[%clk 0:01:13]}  Bxc6 {[%clk 0:00:45]} 24. Rxc6 {[%clk 0:01:12]}  bxc6 {[%clk 0:00:41]} 25. Qb6+ {[%clk 0:01:13]}  Ka8 {[%clk 0:00:41]} 26. Qxc6+ {[%clk 0:01:10]} 1-0


[Site "https://www.chess.com"]

[Event "Titled Tuesday Blitz May 31 Early 2022"]
[White "Abdrlauf, Elham"]
[Black "Shailesh, Dravid"]
[WhiteFideId "1533533"]
[BlackFideId "25017969"]
[WhiteElo "2371"]
[BlackElo "2205"]
[Result "1-0"]
[Round "05"]
[TimeControl "180+1"]
[Date "2022.05.31"]
[WhiteClock "0:02:01"]
[BlackClock "0:01:18"]

1. e4 {[%clk 0:02:58]}  b6 {[%clk 0:02:59]} 2. d4 {[%clk 0:02:59]}  Bb7 {[%clk 0:02:59]} 3. Nc3 {[%clk 0:02:59]}  e6 {[%clk 0:02:59]} 4. Bd3 {[%clk 0:03:00]}  Bb4 {[%clk 0:02:56]} 5. Ne2 {[%clk 0:03:00]}  Nf6 {[%clk 0:02:56]} 6. a3 {[%clk 0:03:01]}  Bxc3+ {[%clk 0:02:47]} 7. Nxc3 {[%clk 0:03:01]}  d5 {[%clk 0:02:47]} 8. e5 {[%clk 0:03:02]}  Nfd7 {[%clk 0:02:47]} 9. Qg4 {[%clk 0:03:02]}  g6 {[%clk 0:02:47]} 10. Bg5 {[%clk 0:03:01]}  Qc8 {[%clk 0:02:46]} 11. O-O-O {[%clk 0:03:00]}  Ba6 {[%clk 0:02:46]} 12. h4 {[%clk 0:02:59]}  Bxd3 {[%clk 0:02:40]} 13. Rxd3 {[%clk 0:02:59]}  Nc6 {[%clk 0:02:38]} 14. h5 {[%clk 0:02:52]}  Rf8 {[%clk 0:01:41]} 15. hxg6 {[%clk 0:02:45]}  hxg6 {[%clk 0:01:41]} 16. Rh7 {[%clk 0:02:45]}  Ne7 {[%clk 0:01:40]} 17. Bxe7 {[%clk 0:02:36]}  Kxe7 {[%clk 0:01:40]} 18. Qxg6 {[%clk 0:02:31]}  c6 {[%clk 0:01:28]} 19. Rf3 {[%clk 0:02:14]}  Kd8 {[%clk 0:01:27]} 20. Rfxf7 {[%clk 0:02:12]}  Rxf7 {[%clk 0:01:25]} 21. Rxf7 {[%clk 0:02:12]}  Kc7 {[%clk 0:01:24]} 22. Qxe6 {[%clk 0:02:12]}  Qe8 {[%clk 0:01:24]} 23. Re7 {[%clk 0:02:00]}  Qd8 {[%clk 0:01:18]} 24. Qd6+ {[%clk 0:02:01]}  Kb7 {[%clk 0:01:18]} 25. Rxd7+ {[%clk 0:02:01]} 1-0


[Site "https://www.chess.com"]

[Event "Titled Tuesday Blitz May 31 Early 2022"]
[White "Barp, Alberto"]
[Black "Guseinov, Gadir"]
[WhiteFideId "872555"]
[BlackFideId "13401378"]
[WhiteElo "2229"]
[BlackElo "2581"]
[Result "1-0"]
[Round "05"]
[TimeControl "180+1"]
[Date "2022.05.31"]
[WhiteClock "0:00:14"]
[BlackClock "0:00:49"]

1. d4 {[%clk 0:03:00]}  Nf6 {[%clk 0:02:59]} 2. Nf3 {[%clk 0:02:59]}  g6 {[%clk 0:02:59]} 3. Bf4 {[%clk 0:02:58]}  Bg7 {[%clk 0:02:59]} 4. Nbd2 {[%clk 0:02:58]}  O-O {[%clk 0:03:00]} 5. h3 {[%clk 0:02:58]}  d6 {[%clk 0:03:00]} 6. c3 {[%clk 0:02:58]}  Nbd7 {[%clk 0:03:00]} 7. Bh2 {[%clk 0:02:57]}  b6 {[%clk 0:03:01]} 8. e4 {[%clk 0:02:54]}  Bb7 {[%clk 0:03:01]} 9. Bd3 {[%clk 0:02:54]}  Qe8 {[%clk 0:02:57]} 10. O-O {[%clk 0:02:53]}  e5 {[%clk 0:02:56]} 11. Re1 {[%clk 0:02:52]}  Nh5 {[%clk 0:02:56]} 12. Nc4 {[%clk 0:02:33]}  Qe7 {[%clk 0:02:53]} 13. dxe5 {[%clk 0:02:22]}  dxe5 {[%clk 0:02:54]} 14. b4 {[%clk 0:02:22]}  Rad8 {[%clk 0:02:53]} 15. Qc2 {[%clk 0:02:18]}  Rfe8 {[%clk 0:02:50]} 16. Ne3 {[%clk 0:02:15]}  Ndf6 {[%clk 0:02:39]} 17. Bxe5 {[%clk 0:02:08]}  Rxd3 {[%clk 0:02:31]} 18. Qxd3 {[%clk 0:02:08]}  Bxe4 {[%clk 0:02:30]} 19. Bxf6 {[%clk 0:01:46]}  Bxf6 {[%clk 0:02:29]} 20. Qd1 {[%clk 0:01:00]}  Rd8 {[%clk 0:02:23]} 21. Qb3 {[%clk 0:00:44]}  Bxf3 {[%clk 0:02:22]} 22. gxf3 {[%clk 0:00:45]}  Bg7 {[%clk 0:02:01]} 23. Qc4 {[%clk 0:00:42]}  Qg5+ {[%clk 0:01:58]} 24. Qg4 {[%clk 0:00:40]}  Qh6 {[%clk 0:01:56]} 25. Rad1 {[%clk 0:00:38]}  Rf8 {[%clk 0:01:54]} 26. Nd5 {[%clk 0:00:38]}  f5 {[%clk 0:01:52]} 27. Qc4 {[%clk 0:00:35]}  Kh8 {[%clk 0:01:51]} 28. Re7 {[%clk 0:00:33]}  Qg5+ {[%clk 0:01:41]} 29. Kf1 {[%clk 0:00:33]}  c6 {[%clk 0:01:28]} 30. Qxc6 {[%clk 0:00:31]}  Qh4 {[%clk 0:01:29]} 31. Kg2 {[%clk 0:00:29]}  Nf4+ {[%clk 0:01:26]} 32. Nxf4 {[%clk 0:00:24]}  Qxe7 {[%clk 0:01:26]} 33. Ne6 {[%clk 0:00:23]}  Rg8 {[%clk 0:00:59]} 34. Rd7 {[%clk 0:00:23]}  Qf6 {[%clk 0:00:58]} 35. Qd6 {[%clk 0:00:16]}  Bh6 {[%clk 0:00:52]} 36. Qc7 {[%clk 0:00:14]}  Bg7 {[%clk 0:00:47]} 37. Nxg7 {[%clk 0:00:11]}  Rxg7 {[%clk 0:00:48]} 38. Rxg7 {[%clk 0:00:11]}  Qxg7 {[%clk 0:00:48]} 39. Qxg7+ {[%clk 0:00:12]}  Kxg7 {[%clk 0:00:49]} 40. f4 {[%clk 0:00:12]}  b5 {[%clk 0:00:48]} 41. Kf3 {[%clk 0:00:12]}  Kf6 {[%clk 0:00:48]} 42. Ke3 {[%clk 0:00:13]}  Ke6 {[%clk 0:00:48]} 43. Kd4 {[%clk 0:00:13]}  Kd6 {[%clk 0:00:49]} 44. c4 {[%clk 0:00:13]}  bxc4 {[%clk 0:00:49]} 45. Kxc4 {[%clk 0:00:14]}  a6 {[%clk 0:00:49]} 46. a4 {[%clk 0:00:14]}  Kc6 {[%clk 0:00:50]} 47. h4 {[%clk 0:00:13]}  h6 {[%clk 0:00:49]} 48. Kd4 {[%clk 0:00:13]}  Kd6 {[%clk 0:00:49]} 49. b5 {[%clk 0:00:13]}  axb5 {[%clk 0:00:49]} 50. axb5 {[%clk 0:00:14]}  Kc7 {[%clk 0:00:49]} 51. Ke5 {[%clk 0:00:14]} 1-0


[Site "https://www.chess.com"]